[Event "Titled Tuesday Blitz February 14 Early 2023"]
[White "Seo, Jung Min"]
[Black "Korchmar, Vasiliy"]
[WhiteFideId "1734687"]
[BlackFideId "24131750"]
[WhiteElo "2494"]
[BlackElo "2438"]
[Result "0-1"]
[Round "11"]
[TimeControl "180+2"]
[Date "2023.02.14"]
[WhiteClock "0:01:50"]
[BlackClock "0:02:16"]

1. e4 {[%clk 0:02:59]}  c5 {[%clk 0:03:00]} 2. Nf3 {[%clk 0:02:59]}  d6 {[%clk 0:03:00]} 3. d4 {[%clk 0:02:59]}  cxd4 {[%clk 0:03:01]} 4. Nxd4 {[%clk 0:03:00]}  Nf6 {[%clk 0:03:02]} 5. Nc3 {[%clk 0:03:00]}  Nc6 {[%clk 0:03:02]} 6. Bc4 {[%clk 0:02:54]}  Qb6 {[%clk 0:02:59]} 7. Nxc6 {[%clk 0:02:51]}  bxc6 {[%clk 0:02:59]} 8. O-O {[%clk 0:02:49]}  g6 {[%clk 0:02:54]} 9. b3 {[%clk 0:02:45]}  Bg7 {[%clk 0:02:53]} 10. Na4 {[%clk 0:02:31]}  Qc7 {[%clk 0:02:51]} 11. Bb2 {[%clk 0:02:31]}  O-O {[%clk 0:02:48]} 12. Bd3 {[%clk 0:02:29]}  d5 {[%clk 0:02:40]} 13. exd5 {[%clk 0:02:29]}  cxd5 {[%clk 0:02:40]} 14. Re1 {[%clk 0:02:29]}  Bd7 {[%clk 0:02:38]} 15. Rxe7 {[%clk 0:02:26]}  Rae8 {[%clk 0:02:33]} 16. Rxe8 {[%clk 0:02:23]}  Rxe8 {[%clk 0:02:34]} 17. Nc3 {[%clk 0:02:12]}  Ng4 {[%clk 0:02:33]} 18. g3 {[%clk 0:01:50]}  Bxc3 {[%clk 0:02:32]} 19. Bxc3 {[%clk 0:01:50]}  Qxc3 {[%clk 0:02:33]} 20. Bf1 {[%clk 0:01:50]}  Qf6 {[%clk 0:02:16]} 0-1


[Site "https://www.chess.com"]

[Event "Titled Tuesday Blitz February 14 Early 2023"]
[White "Bilych, Olexiy"]
[Black "Hansen, Sune Berg"]
[WhiteFideId "14156504"]
[BlackFideId "1400266"]
[WhiteElo "2441"]
[BlackElo "2517"]
[Result "1-0"]
[Round "11"]
[TimeControl "180+2"]
[Date "2023.02.14"]
[WhiteClock "0:00:22"]
[BlackClock "0:00:20"]

1. d4 {[%clk 0:03:00]}  Nf6 {[%clk 0:02:59]} 2. c4 {[%clk 0:03:01]}  g6 {[%clk 0:02:58]} 3. Nc3 {[%clk 0:03:01]}  Bg7 {[%clk 0:02:58]} 4. e4 {[%clk 0:03:01]}  d6 {[%clk 0:02:59]} 5. Be2 {[%clk 0:03:01]}  Nbd7 {[%clk 0:02:59]} 6. Nf3 {[%clk 0:03:01]}  e5 {[%clk 0:02:58]} 7. O-O {[%clk 0:03:00]}  O-O {[%clk 0:02:58]} 8. Re1 {[%clk 0:02:59]}  h6 {[%clk 0:02:58]} 9. Bf1 {[%clk 0:02:45]}  Nh7 {[%clk 0:02:56]} 10. h3 {[%clk 0:02:42]}  Ng5 {[%clk 0:02:53]} 11. dxe5 {[%clk 0:02:31]}  Nxf3+ {[%clk 0:02:44]} 12. Qxf3 {[%clk 0:02:32]}  Nxe5 {[%clk 0:02:44]} 13. Qd1 {[%clk 0:02:32]}  Be6 {[%clk 0:02:43]} 14. Nd5 {[%clk 0:02:12]}  c6 {[%clk 0:02:18]} 15. Ne3 {[%clk 0:02:11]}  f5 {[%clk 0:02:14]} 16. exf5 {[%clk 0:02:05]}  gxf5 {[%clk 0:02:13]} 17. f4 {[%clk 0:01:56]}  Ng6 {[%clk 0:02:10]} 18. Nd5 {[%clk 0:01:54]}  Re8 {[%clk 0:02:01]} 19. Nc3 {[%clk 0:01:51]}  Qh4 {[%clk 0:01:59]} 20. Kh2 {[%clk 0:01:31]}  Rad8 {[%clk 0:01:22]} 21. g3 {[%clk 0:01:29]}  Qf6 {[%clk 0:01:22]} 22. Be3 {[%clk 0:01:27]}  d5 {[%clk 0:01:16]} 23. cxd5 {[%clk 0:01:24]}  cxd5 {[%clk 0:01:15]} 24. Bf2 {[%clk 0:00:49]}  d4 {[%clk 0:01:14]} 25. Nb5 {[%clk 0:00:48]}  d3 {[%clk 0:01:08]} 26. Nc7 {[%clk 0:00:30]}  Qxb2 {[%clk 0:01:07]} 27. Qf3 {[%clk 0:00:31]}  Bd4 {[%clk 0:00:33]} 28. Kg1 {[%clk 0:00:30]}  d2 {[%clk 0:00:25]} 29. Red1 {[%clk 0:00:27]}  Bd5 {[%clk 0:00:19]} 30. Nxd5 {[%clk 0:00:23]}  Bxf2+ {[%clk 0:00:20]} 31. Qxf2 {[%clk 0:00:22]} 1-0


[Site "https://www.chess.com"]

[Event "Titled Tuesday Blitz February 14 Early 2023"]
[White "Skliarov, Viktor"]
[Black "Barp, Alberto"]
[WhiteFideId "14106736"]
[BlackFideId "872555"]
[WhiteElo "2383"]
[BlackElo "2432"]
[Result "1-0"]
[Round "11"]
[TimeControl "180+2"]
[Date "2023.02.14"]
[WhiteClock "0:00:11"]
[BlackClock "0:00:40"]

1. e4 {[%clk 0:03:00]}  c5 {[%clk 0:02:58]} 2. Nf3 {[%clk 0:03:00]}  a6 {[%clk 0:02:56]} 3. c3 {[%clk 0:02:59]}  e6 {[%clk 0:02:52]} 4. d4 {[%clk 0:02:58]}  d5 {[%clk 0:02:53]} 5. e5 {[%clk 0:02:58]}  Bd7 {[%clk 0:02:53]} 6. Bd3 {[%clk 0:02:53]}  Nc6 {[%clk 0:02:50]} 7. a3 {[%clk 0:02:51]}  Nh6 {[%clk 0:02:41]} 8. Bxh6 {[%clk 0:02:41]}  gxh6 {[%clk 0:02:42]} 9. b4 {[%clk 0:02:41]}  cxd4 {[%clk 0:02:39]} 10. cxd4 {[%clk 0:02:42]}  f5 {[%clk 0:02:24]} 11. O-O {[%clk 0:02:15]}  Be7 {[%clk 0:02:20]} 12. Nc3 {[%clk 0:02:09]}  O-O {[%clk 0:02:18]} 13. Rc1 {[%clk 0:01:53]}  Rc8 {[%clk 0:02:17]} 14. Qe2 {[%clk 0:01:39]}  Kh8 {[%clk 0:02:03]} 15. Kh1 {[%clk 0:01:30]}  Rg8 {[%clk 0:02:02]} 16. h3 {[%clk 0:01:26]}  Bg5 {[%clk 0:01:58]} 17. Rc2 {[%clk 0:01:23]}  Qe7 {[%clk 0:01:53]} 18. b5 {[%clk 0:01:17]}  Na5 {[%clk 0:01:47]} 19. bxa6 {[%clk 0:01:10]}  bxa6 {[%clk 0:01:48]} 20. Bxa6 {[%clk 0:01:04]}  Rc6 {[%clk 0:01:40]} 21. Bb5 {[%clk 0:01:00]}  Rcc8 {[%clk 0:01:39]} 22. a4 {[%clk 0:00:56]}  Nc4 {[%clk 0:01:39]} 23. Bxd7 {[%clk 0:00:55]}  Qxd7 {[%clk 0:01:39]} 24. Nb5 {[%clk 0:00:55]}  Be7 {[%clk 0:01:36]} 25. Ra2 {[%clk 0:00:53]}  Bb4 {[%clk 0:01:32]} 26. Rb1 {[%clk 0:00:47]}  Ba5 {[%clk 0:01:31]} 27. Kh2 {[%clk 0:00:37]}  f4 {[%clk 0:01:26]} 28. Qd3 {[%clk 0:00:34]}  Qg7 {[%clk 0:01:25]} 29. Rg1 {[%clk 0:00:33]}  Qf7 {[%clk 0:01:16]} 30. Raa1 {[%clk 0:00:31]}  Qh5 {[%clk 0:01:14]} 31. Nd6 {[%clk 0:00:28]}  Rc6 {[%clk 0:01:13]} 32. Nb7 {[%clk 0:00:24]}  Rc7 {[%clk 0:01:04]} 33. Nxa5 {[%clk 0:00:24]}  Nxa5 {[%clk 0:01:05]} 34. Qa6 {[%clk 0:00:24]}  Nc6 {[%clk 0:01:00]} 35. Qb6 {[%clk 0:00:23]}  Rcc8 {[%clk 0:00:59]} 36. a5 {[%clk 0:00:23]}  Qe8 {[%clk 0:00:54]} 37. a6 {[%clk 0:00:23]}  Rb8 {[%clk 0:00:55]} 38. Qc7 {[%clk 0:00:21]}  Rc8 {[%clk 0:00:54]} 39. Qd6 {[%clk 0:00:21]}  Rd8 {[%clk 0:00:54]} 40. Qc5 {[%clk 0:00:21]}  Qd7 {[%clk 0:00:54]} 41. Rgc1 {[%clk 0:00:18]}  Rc8 {[%clk 0:00:54]} 42. Qd6 {[%clk 0:00:18]}  Rg7 {[%clk 0:00:42]} 43. Qxd7 {[%clk 0:00:17]}  Rxd7 {[%clk 0:00:43]} 44. Rc5 {[%clk 0:00:15]}  Rdc7 {[%clk 0:00:42]} 45. a7 {[%clk 0:00:11]}  Nxa7 {[%clk 0:00:40]} 46. Rxa7 {[%clk 0:00:11]}  Rxc5 {[%clk 0:00:40]} 47. dxc5 {[%clk 0:00:11]} 1-0


[Site "https://www.chess.com"]

[Event "Titled Tuesday Blitz February 14 Early 2023"]
[White "Makhnev, Denis"]
[Black "Yurasova, Daria"]
[WhiteFideId "13707647"]
[BlackFideId "34146919"]
[WhiteElo "2483"]
[BlackElo "2095"]
[Result "1-0"]
[Round "11"]
[TimeControl "180+2"]
[Date "2023.02.14"]
[WhiteClock "0:00:52"]
[BlackClock "0:00:41"]

1. d4 {[%clk 0:03:00]}  d5 {[%clk 0:02:59]} 2. c4 {[%clk 0:03:01]}  dxc4 {[%clk 0:03:00]} 3. Nf3 {[%clk 0:03:02]}  Nf6 {[%clk 0:03:00]} 4. e3 {[%clk 0:03:02]}  e6 {[%clk 0:03:00]} 5. Bxc4 {[%clk 0:03:03]}  a6 {[%clk 0:03:00]} 6. O-O {[%clk 0:03:04]}  b5 {[%clk 0:03:01]} 7. Be2 {[%clk 0:03:03]}  Bb7 {[%clk 0:03:01]} 8. Ne5 {[%clk 0:03:04]}  Nbd7 {[%clk 0:03:01]} 9. Bf3 {[%clk 0:03:03]}  Bxf3 {[%clk 0:03:00]} 10. Qxf3 {[%clk 0:03:04]}  Nxe5 {[%clk 0:03:01]} 11. dxe5 {[%clk 0:03:04]}  Nd5 {[%clk 0:03:02]} 12. Rd1 {[%clk 0:03:00]}  Qc8 {[%clk 0:02:58]} 13. e4 {[%clk 0:02:57]}  Nb6 {[%clk 0:02:58]} 14. Qg3 {[%clk 0:02:50]}  g6 {[%clk 0:02:44]} 15. Bg5 {[%clk 0:02:44]}  Nd7 {[%clk 0:02:38]} 16. Nd2 {[%clk 0:01:49]}  Bg7 {[%clk 0:02:35]} 17. Nf3 {[%clk 0:01:49]}  O-O {[%clk 0:02:34]} 18. h4 {[%clk 0:01:50]}  Nc5 {[%clk 0:02:29]} 19. Qf4 {[%clk 0:01:47]}  Re8 {[%clk 0:02:20]} 20. h5 {[%clk 0:01:44]}  Qb7 {[%clk 0:02:14]} 21. Rd4 {[%clk 0:01:43]}  c6 {[%clk 0:01:58]} 22. Rad1 {[%clk 0:01:41]}  Qc7 {[%clk 0:01:51]} 23. Rd6 {[%clk 0:01:30]}  Rf8 {[%clk 0:01:44]} 24. Bf6 {[%clk 0:01:30]}  h6 {[%clk 0:01:13]} 25. b4 {[%clk 0:01:27]}  Bxf6 {[%clk 0:01:06]} 26. exf6 {[%clk 0:01:26]}  g5 {[%clk 0:01:05]} 27. Nxg5 {[%clk 0:01:17]}  Nb7 {[%clk 0:00:50]} 28. Nxe6 {[%clk 0:00:51]}  fxe6 {[%clk 0:00:46]} 29. Qg4+ {[%clk 0:00:51]}  Kh8 {[%clk 0:00:41]} 30. Rd7 {[%clk 0:00:52]} 1-0


[Site "https://www.chess.com"]

[Event "Titled Tuesday Blitz February 14 Early 2023"]
[White "Melian, Juan Sebastian"]
[Black "Tanenbaum, Zachary"]
[WhiteFideId "3706575"]
[BlackFideId "2060850"]
[WhiteElo "2293"]
[BlackElo "2261"]
[Result "0-1"]
[Round "11"]
[TimeControl "180+2"]
[Date "2023.02.14"]
[WhiteClock "0:00:02"]
[BlackClock "0:00:17"]

1. d4 {[%clk 0:03:00]}  d5 {[%clk 0:03:00]} 2. c4 {[%clk 0:03:01]}  dxc4 {[%clk 0:03:00]} 3. Nf3 {[%clk 0:02:57]}  Nf6 {[%clk 0:02:59]} 4. e3 {[%clk 0:02:58]}  Bg4 {[%clk 0:03:00]} 5. Bxc4 {[%clk 0:02:58]}  e6 {[%clk 0:03:00]} 6. O-O {[%clk 0:02:56]}  Nbd7 {[%clk 0:03:00]} 7. Qe2 {[%clk 0:02:53]}  Bd6 {[%clk 0:02:59]} 8. h3 {[%clk 0:02:50]}  Bh5 {[%clk 0:02:58]} 9. Rd1 {[%clk 0:02:31]}  Qe7 {[%clk 0:02:57]} 10. Nc3 {[%clk 0:02:28]}  O-O {[%clk 0:02:55]} 11. e4 {[%clk 0:02:22]}  e5 {[%clk 0:02:55]} 12. d5 {[%clk 0:02:18]}  a6 {[%clk 0:02:30]} 13. a4 {[%clk 0:02:17]}  Nc5 {[%clk 0:02:20]} 14. Bg5 {[%clk 0:02:08]}  h6 {[%clk 0:02:19]} 15. Bh4 {[%clk 0:02:08]}  Bg6 {[%clk 0:02:18]} 16. Bd3 {[%clk 0:01:53]}  Nb3 {[%clk 0:02:05]} 17. Rab1 {[%clk 0:01:49]}  Rfe8 {[%clk 0:01:30]} 18. Bc2 {[%clk 0:01:45]}  Nd4 {[%clk 0:01:25]} 19. Qd3 {[%clk 0:01:37]}  Bh5 {[%clk 0:01:18]} 20. g4 {[%clk 0:01:33]}  Nxc2 {[%clk 0:01:16]} 21. Qxc2 {[%clk 0:01:31]}  Bg6 {[%clk 0:01:14]} 22. Qe2 {[%clk 0:01:27]}  h5 {[%clk 0:01:11]} 23. Kg2 {[%clk 0:01:16]}  hxg4 {[%clk 0:01:04]} 24. hxg4 {[%clk 0:01:17]}  Qd7 {[%clk 0:01:04]} 25. Nh2 {[%clk 0:01:17]}  Be7 {[%clk 0:01:00]} 26. Bg3 {[%clk 0:01:00]}  Bb4 {[%clk 0:00:56]} 27. f3 {[%clk 0:00:59]}  c6 {[%clk 0:00:37]} 28. Qc4 {[%clk 0:00:57]}  Bxc3 {[%clk 0:00:34]} 29. d6 {[%clk 0:00:44]}  Bd4 {[%clk 0:00:32]} 30. b4 {[%clk 0:00:09]}  b5 {[%clk 0:00:29]} 31. Qc2 {[%clk 0:00:08]}  Qxd6 {[%clk 0:00:28]} 32. Rd2 {[%clk 0:00:04]}  Qe6 {[%clk 0:00:27]} 33. Rbd1 {[%clk 0:00:04]}  Qc4 {[%clk 0:00:19]} 34. Qb1 {[%clk 0:00:03]}  bxa4 {[%clk 0:00:18]} 35. Rc2 {[%clk 0:00:03]}  Qb5 {[%clk 0:00:17]} 36. Nf1 {[%clk 0:00:02]}  Nxe4 {[%clk 0:00:17]} 0-1


[Site "https://www.chess.com"]

[Event "Titled Tuesday Blitz February 14 Early 2023"]
[White "Golubev, Mikhail"]
[Black "Martinez Ramirez, Lennis"]
[WhiteFideId "14100983"]
[BlackFideId "3509079"]
[WhiteElo "2461"]
[BlackElo "2426"]
[Result "0-1"]
[Round "11"]
[TimeControl "180+2"]
[Date "2023.02.14"]
[WhiteClock "0:00:01"]
[BlackClock "0:00:42"]

1. e4 {[%clk 0:02:56]}  c5 {[%clk 0:02:58]} 2. Nf3 {[%clk 0:02:55]}  d6 {[%clk 0:02:58]} 3. d4 {[%clk 0:02:54]}  cxd4 {[%clk 0:02:59]} 4. Nxd4 {[%clk 0:02:55]}  Nf6 {[%clk 0:02:59]} 5. Nc3 {[%clk 0:02:56]}  a6 {[%clk 0:03:00]} 6. Bc4 {[%clk 0:02:56]}  e6 {[%clk 0:02:58]} 7. O-O {[%clk 0:02:55]}  Be7 {[%clk 0:02:47]} 8. Bb3 {[%clk 0:02:55]}  O-O {[%clk 0:02:45]} 9. f4 {[%clk 0:02:55]}  Nbd7 {[%clk 0:02:44]} 10. Be3 {[%clk 0:02:51]}  Nc5 {[%clk 0:02:40]} 11. Qf3 {[%clk 0:02:44]}  Qc7 {[%clk 0:02:36]} 12. g4 {[%clk 0:02:41]}  b5 {[%clk 0:02:31]} 13. g5 {[%clk 0:02:40]}  Nfxe4 {[%clk 0:02:27]} 14. Nxe4 {[%clk 0:02:38]}  Bb7 {[%clk 0:02:27]} 15. Nxe6 {[%clk 0:02:38]}  fxe6 {[%clk 0:02:25]} 16. Nxc5 {[%clk 0:02:36]}  Bxf3 {[%clk 0:02:23]} 17. Nxe6 {[%clk 0:02:33]}  Qa5 {[%clk 0:01:37]} 18. Nxf8+ {[%clk 0:02:13]}  Kxf8 {[%clk 0:01:24]} 19. Rxf3 {[%clk 0:02:13]}  d5 {[%clk 0:01:22]} 20. f5 {[%clk 0:02:00]}  Qc7 {[%clk 0:01:21]} 21. Kg2 {[%clk 0:01:28]}  Bc5 {[%clk 0:01:20]} 22. Bf4 {[%clk 0:01:21]}  Qc6 {[%clk 0:01:16]} 23. f6 {[%clk 0:01:11]}  Re8 {[%clk 0:01:12]} 24. Rd1 {[%clk 0:00:47]}  d4 {[%clk 0:01:12]} 25. c3 {[%clk 0:00:33]}  Re2+ {[%clk 0:01:06]} 26. Kg3 {[%clk 0:00:33]}  gxf6 {[%clk 0:01:04]} 27. gxf6 {[%clk 0:00:30]}  Rxb2 {[%clk 0:00:48]} 28. Bh6+ {[%clk 0:00:25]}  Ke8 {[%clk 0:00:46]} 29. f7+ {[%clk 0:00:24]}  Kd7 {[%clk 0:00:46]} 30. Rxd4+ {[%clk 0:00:20]}  Kc7 {[%clk 0:00:46]} 31. Bf4+ {[%clk 0:00:10]}  Kb6 {[%clk 0:00:46]} 32. Rd8 {[%clk 0:00:08]}  Qg6+ {[%clk 0:00:46]} 33. Kh3 {[%clk 0:00:06]}  Qg2+ {[%clk 0:00:42]} 34. Kh4 {[%clk 0:00:04]}  Be7+ {[%clk 0:00:42]} 35. Kh5 {[%clk 0:00:01]}  Qg6# {[%clk 0:00:42]} 0-1


[Site "https://www.chess.com"]

[Event "Titled Tuesday Blitz February 14 Early 2023"]
[White "Berezin, Viktor"]
[Black "Stoleriu, George"]
[WhiteFideId "14107872"]
[BlackFideId "1227505"]
[WhiteElo "2307"]
[BlackElo "2390"]
[Result "0-1"]
[Round "11"]
[TimeControl "180+2"]
[Date "2023.02.14"]
[WhiteClock "0:00:51"]
[BlackClock "0:00:11"]

1. d4 {[%clk 0:03:00]}  e6 {[%clk 0:02:59]} 2. c4 {[%clk 0:03:00]}  b6 {[%clk 0:02:57]} 3. Nf3 {[%clk 0:02:59]}  Bb7 {[%clk 0:02:57]} 4. g3 {[%clk 0:02:59]}  Bb4+ {[%clk 0:02:53]} 5. Nbd2 {[%clk 0:02:58]}  f5 {[%clk 0:02:49]} 6. Bg2 {[%clk 0:02:58]}  Nf6 {[%clk 0:02:47]} 7. O-O {[%clk 0:02:58]}  O-O {[%clk 0:02:38]} 8. a3 {[%clk 0:02:57]}  Bxd2 {[%clk 0:02:37]} 9. Nxd2 {[%clk 0:02:57]}  Bxg2 {[%clk 0:02:35]} 10. Kxg2 {[%clk 0:02:58]}  a5 {[%clk 0:02:33]} 11. b3 {[%clk 0:02:55]}  Qe7 {[%clk 0:01:59]} 12. Nf3 {[%clk 0:02:52]}  Ne4 {[%clk 0:01:56]} 13. Bb2 {[%clk 0:02:51]}  d6 {[%clk 0:01:51]} 14. Qc2 {[%clk 0:02:48]}  Nd7 {[%clk 0:01:49]} 15. b4 {[%clk 0:02:47]}  Ndf6 {[%clk 0:01:24]} 16. Rac1 {[%clk 0:02:35]}  g5 {[%clk 0:00:36]} 17. c5 {[%clk 0:02:21]}  g4 {[%clk 0:00:35]} 18. Nd2 {[%clk 0:02:18]}  Nxd2 {[%clk 0:00:33]} 19. Qxd2 {[%clk 0:02:17]}  Ne4 {[%clk 0:00:34]} 20. Qf4 {[%clk 0:02:13]}  axb4 {[%clk 0:00:34]} 21. axb4 {[%clk 0:02:13]}  Ra2 {[%clk 0:00:35]} 22. Rc2 {[%clk 0:02:12]}  e5 {[%clk 0:00:31]} 23. dxe5 {[%clk 0:01:55]}  dxe5 {[%clk 0:00:32]} 24. Qe3 {[%clk 0:01:54]}  Qe6 {[%clk 0:00:25]} 25. f3 {[%clk 0:01:52]}  Nf6 {[%clk 0:00:19]} 26. Rfc1 {[%clk 0:01:39]}  f4 {[%clk 0:00:13]} 27. Qxe5 {[%clk 0:01:33]}  Qxe5 {[%clk 0:00:10]} 28. Bxe5 {[%clk 0:01:34]}  Rxc2 {[%clk 0:00:11]} 29. Rxc2 {[%clk 0:01:34]}  Nd5 {[%clk 0:00:11]} 30. Bxf4 {[%clk 0:01:31]}  Rxf4 {[%clk 0:00:11]} 31. gxf4 {[%clk 0:01:31]}  Ne3+ {[%clk 0:00:12]} 32. Kf2 {[%clk 0:01:13]}  Nxc2 {[%clk 0:00:13]} 33. cxb6 {[%clk 0:01:13]}  cxb6 {[%clk 0:00:13]} 34. fxg4 {[%clk 0:01:10]}  Nxb4 {[%clk 0:00:13]} 35. Ke3 {[%clk 0:01:08]}  Kf7 {[%clk 0:00:12]} 36. Kd4 {[%clk 0:01:08]}  Ke6 {[%clk 0:00:10]} 37. e4 {[%clk 0:01:09]}  Nc2+ {[%clk 0:00:11]} 38. Kd3 {[%clk 0:01:08]}  Ne1+ {[%clk 0:00:10]} 39. Ke3 {[%clk 0:01:01]}  Ng2+ {[%clk 0:00:11]} 40. Kf3 {[%clk 0:01:00]}  b5 {[%clk 0:00:11]} 41. e5 {[%clk 0:00:50]}  b4 {[%clk 0:00:11]} 42. Ke4 {[%clk 0:00:51]}  Nxf4 {[%clk 0:00:11]} 0-1


[Site "https://www.chess.com"]

[Event "Titled Tuesday Blitz February 14 Early 2023"]
[White "Gimenez Aguirre, Alejo Ismael"]
[Black "Klabis, Rokas"]
[WhiteFideId "32041667"]
[BlackFideId "12805246"]
[WhiteElo "2273"]
[BlackElo "2415"]
[Result "1-0"]
[Round "11"]
[TimeControl "180+2"]
[Date "2023.02.14"]
[WhiteClock "0:01:21"]
[BlackClock "0:01:49"]

1. e4 {[%clk 0:02:59]}  e5 {[%clk 0:02:59]} 2. Nf3 {[%clk 0:02:59]}  Nc6 {[%clk 0:03:00]} 3. Bb5 {[%clk 0:02:59]}  g6 {[%clk 0:03:00]} 4. O-O {[%clk 0:02:59]}  Bg7 {[%clk 0:02:59]} 5. Re1 {[%clk 0:02:59]}  a6 {[%clk 0:02:58]} 6. Ba4 {[%clk 0:02:59]}  b5 {[%clk 0:02:58]} 7. Bb3 {[%clk 0:02:59]}  Nf6 {[%clk 0:02:59]} 8. h3 {[%clk 0:02:59]}  O-O {[%clk 0:02:59]} 9. c3 {[%clk 0:03:00]}  d6 {[%clk 0:02:59]} 10. d4 {[%clk 0:03:00]}  exd4 {[%clk 0:02:54]} 11. cxd4 {[%clk 0:02:59]}  Na5 {[%clk 0:02:54]} 12. Bc2 {[%clk 0:02:58]}  c5 {[%clk 0:02:55]} 13. Nc3 {[%clk 0:02:41]}  Re8 {[%clk 0:02:50]} 14. a3 {[%clk 0:02:31]}  Bb7 {[%clk 0:02:49]} 15. Bg5 {[%clk 0:02:28]}  h6 {[%clk 0:02:45]} 16. Bh4 {[%clk 0:02:28]}  Nc4 {[%clk 0:02:45]} 17. Qb1 {[%clk 0:02:12]}  g5 {[%clk 0:02:41]} 18. Bg3 {[%clk 0:02:12]}  Nh5 {[%clk 0:02:41]} 19. dxc5 {[%clk 0:02:06]}  Nxg3 {[%clk 0:02:38]} 20. fxg3 {[%clk 0:02:05]}  dxc5 {[%clk 0:02:39]} 21. Bb3 {[%clk 0:01:34]}  Nd2 {[%clk 0:01:59]} 22. Nxd2 {[%clk 0:01:30]}  Qxd2 {[%clk 0:02:00]} 23. Qc1 {[%clk 0:01:25]}  c4 {[%clk 0:01:49]} 24. Qxd2 {[%clk 0:01:21]} 1-0


[Site "https://www.chess.com"]

[Event "Titled Tuesday Blitz February 14 Early 2023"]
[White "Girsh, Daniel"]
[Black "Liyanage, Ranindu Dilshan"]
[WhiteFideId "30949190"]
[BlackFideId "9915834"]
[WhiteElo "2123"]
[BlackElo "2342"]
[Result "0-1"]
[Round "11"]
[TimeControl "180+2"]
[Date "2023.02.14"]
[WhiteClock "0:00:04"]
[BlackClock "0:00:26"]

1. e4 {[%clk 0:03:00]}  e5 {[%clk 0:02:58]} 2. Nf3 {[%clk 0:03:01]}  Nc6 {[%clk 0:02:59]} 3. Bb5 {[%clk 0:03:01]}  a6 {[%clk 0:02:59]} 4. Ba4 {[%clk 0:03:02]}  Nf6 {[%clk 0:02:59]} 5. d4 {[%clk 0:02:59]}  exd4 {[%clk 0:02:40]} 6. e5 {[%clk 0:02:59]}  Ne4 {[%clk 0:02:29]} 7. O-O {[%clk 0:02:52]}  d5 {[%clk 0:02:24]} 8. exd6 {[%clk 0:02:50]}  Nxd6 {[%clk 0:02:23]} 9. Nxd4 {[%clk 0:02:47]}  Bd7 {[%clk 0:02:22]} 10. Re1+ {[%clk 0:02:46]}  Be7 {[%clk 0:02:21]} 11. Bxc6 {[%clk 0:02:46]}  bxc6 {[%clk 0:02:17]} 12. Qe2 {[%clk 0:02:45]}  c5 {[%clk 0:02:12]} 13. Nb3 {[%clk 0:02:44]}  Bb5 {[%clk 0:01:42]} 14. Qg4 {[%clk 0:02:39]}  O-O {[%clk 0:01:40]} 15. Nxc5 {[%clk 0:02:36]}  Bf6 {[%clk 0:01:35]} 16. Nc3 {[%clk 0:02:32]}  Bc6 {[%clk 0:01:30]} 17. Bf4 {[%clk 0:02:23]}  Qb8 {[%clk 0:01:25]} 18. Bxd6 {[%clk 0:02:19]}  cxd6 {[%clk 0:01:26]} 19. N5e4 {[%clk 0:02:17]}  Be5 {[%clk 0:01:18]} 20. Qh3 {[%clk 0:02:02]}  Qxb2 {[%clk 0:01:10]} 21. Rab1 {[%clk 0:02:00]}  Qa3 {[%clk 0:01:03]} 22. Re3 {[%clk 0:01:45]}  Qa5 {[%clk 0:00:59]} 23. Rd1 {[%clk 0:01:06]}  Rab8 {[%clk 0:00:52]} 24. g4 {[%clk 0:00:46]}  Rfe8 {[%clk 0:00:33]} 25. Nxd6 {[%clk 0:00:40]}  Bxd6 {[%clk 0:00:31]} 26. Rxd6 {[%clk 0:00:26]}  Rxe3 {[%clk 0:00:29]} 27. Qxe3 {[%clk 0:00:20]}  Qxc3 {[%clk 0:00:29]} 28. Rd3 {[%clk 0:00:04]}  Rb1+ {[%clk 0:00:26]} 0-1


[Site "https://www.chess.com"]

[Event "Titled Tuesday Blitz February 14 Early 2023"]
[White "Morefield, Jason"]
[Black "Kanyamarala, Tarun"]
[WhiteFideId "30920825"]
[BlackFideId "45004714"]
[WhiteElo "2167"]
[BlackElo "2342"]
[Result "0-1"]
[Round "11"]
[TimeControl "180+2"]
[Date "2023.02.14"]
[WhiteClock "0:00:02"]
[BlackClock "0:00:03"]

1. e4 {[%clk 0:03:00]}  c5 {[%clk 0:02:43]} 2. Nf3 {[%clk 0:03:00]}  Nc6 {[%clk 0:02:37]} 3. d4 {[%clk 0:02:58]}  cxd4 {[%clk 0:02:36]} 4. Nxd4 {[%clk 0:02:59]}  Nf6 {[%clk 0:02:35]} 5. Nc3 {[%clk 0:02:59]}  d6 {[%clk 0:02:34]} 6. Bg5 {[%clk 0:02:59]}  e6 {[%clk 0:02:28]} 7. Qd2 {[%clk 0:02:58]}  a6 {[%clk 0:02:28]} 8. O-O-O {[%clk 0:02:57]}  Be7 {[%clk 0:02:28]} 9. Kb1 {[%clk 0:02:50]}  Nxd4 {[%clk 0:02:14]} 10. Qxd4 {[%clk 0:02:49]}  b5 {[%clk 0:02:15]} 11. f4 {[%clk 0:02:29]}  Bb7 {[%clk 0:02:14]} 12. a3 {[%clk 0:02:18]}  h6 {[%clk 0:02:02]} 13. Bh4 {[%clk 0:02:17]}  O-O {[%clk 0:01:50]} 14. Be2 {[%clk 0:02:05]}  Rc8 {[%clk 0:01:48]} 15. Bf3 {[%clk 0:01:49]}  Rc4 {[%clk 0:01:41]} 16. Qd3 {[%clk 0:01:27]}  Qa8 {[%clk 0:01:37]} 17. e5 {[%clk 0:01:20]}  dxe5 {[%clk 0:01:33]} 18. Bxb7 {[%clk 0:01:18]}  Qxb7 {[%clk 0:01:31]} 19. fxe5 {[%clk 0:01:16]}  Rxh4 {[%clk 0:01:30]} 20. exf6 {[%clk 0:01:16]}  Bxf6 {[%clk 0:01:30]} 21. g3 {[%clk 0:01:02]}  Rc4 {[%clk 0:01:27]} 22. Ne2 {[%clk 0:00:52]}  Rfc8 {[%clk 0:01:21]} 23. c3 {[%clk 0:00:51]}  a5 {[%clk 0:01:19]} 24. Rc1 {[%clk 0:00:47]}  Rd8 {[%clk 0:00:55]} 25. Qc2 {[%clk 0:00:33]}  b4 {[%clk 0:00:52]} 26. Ka2 {[%clk 0:00:26]}  bxa3 {[%clk 0:00:29]} 27. b3 {[%clk 0:00:23]}  Re4 {[%clk 0:00:27]} 28. Rhd1 {[%clk 0:00:20]}  Rc8 {[%clk 0:00:25]} 29. Rd3 {[%clk 0:00:10]}  a4 {[%clk 0:00:23]} 30. b4 {[%clk 0:00:09]}  Rxb4 {[%clk 0:00:23]} 31. cxb4 {[%clk 0:00:08]}  Rxc2+ {[%clk 0:00:23]} 32. Rxc2 {[%clk 0:00:09]}  Qxb4 {[%clk 0:00:22]} 33. Rxa3 {[%clk 0:00:09]}  Qe4 {[%clk 0:00:18]} 34. Kb1 {[%clk 0:00:07]}  Be7 {[%clk 0:00:17]} 35. Rc3 {[%clk 0:00:05]}  a3 {[%clk 0:00:16]} 36. Ka2 {[%clk 0:00:04]}  Qd5+ {[%clk 0:00:15]} 37. Rc4 {[%clk 0:00:05]}  h5 {[%clk 0:00:14]} 38. Nc1 {[%clk 0:00:05]}  Bf6 {[%clk 0:00:13]} 39. Kxa3 {[%clk 0:00:04]}  Qa5+ {[%clk 0:00:12]} 40. Kb3 {[%clk 0:00:04]}  Qb5+ {[%clk 0:00:10]} 41. Rb4 {[%clk 0:00:04]}  Qd5+ {[%clk 0:00:10]} 42. Rcc4 {[%clk 0:00:05]}  Qg2 {[%clk 0:00:09]} 43. Rc2 {[%clk 0:00:04]}  Qf3+ {[%clk 0:00:09]} 44. Ka2 {[%clk 0:00:04]}  h4 {[%clk 0:00:08]} 45. Rb3 {[%clk 0:00:04]}  Qa8+ {[%clk 0:00:07]} 46. Ra3 {[%clk 0:00:04]}  Qd5+ {[%clk 0:00:07]} 47. Kb1 {[%clk 0:00:03]}  hxg3 {[%clk 0:00:06]} 48. hxg3 {[%clk 0:00:04]}  Kh7 {[%clk 0:00:06]} 49. Ne2 {[%clk 0:00:04]}  Qb5+ {[%clk 0:00:05]} 50. Kc1 {[%clk 0:00:03]}  Bg5+ {[%clk 0:00:05]} 51. Kd1 {[%clk 0:00:02]}  Qb1+ {[%clk 0:00:05]} 52. Nc1 {[%clk 0:00:02]}  Qb8 {[%clk 0:00:04]} 53. Rf3 {[%clk 0:00:02]}  Qb7 {[%clk 0:00:03]} 54. Ke2 {[%clk 0:00:02]}  Qe4+ {[%clk 0:00:03]} 0-1


[Site "https://www.chess.com"]